Cogmind - Beta 11 X6 @@@ ROGUE MODE // 2021.07.24 @ 04:21:30 Player: AlmondRoll Result: Destroyed by Enhanced Grunt with Neutron Cannon Performance ------------- Evolutions (4) 2000 Regions Visited (16) 3200 Robots Destroyed (163) 815 Value Destroyed (4367) 4367 Prototype IDs (51) 1020 Alien Tech Used (0) 0 Bonus (676) 676 TOTAL SCORE: 12078 Bonus ------- Follower Combat Kills 274 Aligned with FarCom 300 Met Data Miner 300 Friendly Fire -198 Cogmind --------- Core Integrity 0/850 Matter 292/300 Energy 22/100 System Corruption 3% Temperature Cool (12) Movement Core (50) Location -6/Data Miner Parts ------- > --- POWER (1) -------- (None) > --- PROPULSION (4) --- (None) > --- UTILITY (7) ------ Advanced Targeting Computer Advanced Targeting Computer > --- WEAPON (3) ------- CR-A16's Behemoth Slayer > --- INVENTORY (5) ---- Hacking Suite System Shield Heart of Steel Peak State ------------ > --- POWER ------------ Fission Core > --- PROPULSION ------- Armored Treads Armored Treads Medium Treads Medium Treads > --- UTILITY ---------- Improved Cooling System High-capacity Storage Unit Improved Trap Scanner Active Sensor Suite Advanced Targeting Computer > --- WEAPON ----------- Heavy Machine Gun Heavy Machine Gun Advanced Assault Cannon > --- INVENTORY -------- Light Angular Momentum Engine Armored Treads Improved Cooling System Matter Compressor Advanced Targeting Computer Kinecellerator Improved Transmission Jammer Improved Medium Armor Plating Improved Medium Armor Plating System Shield System Shield Hacking Drone Bay Heart of Steel Gauss Rifle Heavy Machine Gun Long-range Missile Launcher CR-A16's Behemoth Slayer GAL Module [Rating: 83] Favorites ----------- Power Improved Deuterium Engine Engine Improved Deuterium Engine Power Core Fission Core Propulsion Armored Treads Treads Armored Treads Leg Potential Leg Wheel Compact Wheel Utility High-capacity Storage Unit Device Active Sensor Suite Storage High-capacity Storage Unit Processor Advanced Targeting Computer Hackware System Shield Protection Improved Medium Armor Plating Weapon Bore Cannon Energy Gun Advanced Beam Rifle Ballistic Gun Heavy Machine Gun Ballistic Cannon Bore Cannon Launcher Long-range Missile Launcher Piercing Weapon CR-A16's Behemoth Slayer Build | -11 -10 -10 -9 -9 -9 -8 -8 -7 -7 -7 -7 -6 -6 -6 -6 -6 ------- Run | Scr Mat Min Mat Min Exi Min Mat Fac Low Low Zio Pro Fac Low Low Dat Slots Evolved 8 | . . . 2 . . . 2 2 . . . . 2 . . . Power . | . . . . . . . . . . . . . . . . . Propulsion 2 | . . . . . . . . 2 . . . . . . . . Utility 5 | . . . 1 . . . 2 . . . . . 2 . . . Weapon 1 | . . . 1 . . . . . . . . . . . . . Parts Attached 136 | 2 9 . 15 . 3 1 25 12 1 1 . 9 26 13 7 12 Power 12 | . . . 2 . . . 2 1 1 . . 1 3 1 . 1 Engine 11 | . . . 2 . . . 2 1 1 . . 1 2 1 . 1 Core 1 | . . . . . . . . . . . . . 1 . . . Reactor . | . . . . . . . . . . . . . . . . . Propulsion 31 | 2 4 . 6 . 2 . 6 6 . . . . 3 1 1 . Treads 19 | . 2 . 2 . . . 4 6 . . . . 3 1 1 . Leg 4 | . . . . . 2 . 2 . . . . . . . . . Wheel 8 | 2 2 . 4 . . . . . . . . . . . . . Hover . | . . . . . . . . . . . . . . . . . Flight . | . . . . . . . . . . . . . . . . . Utility 41 | . 4 . 1 . 1 . 8 1 . . . 1 10 8 2 5 Device 25 | . 3 . . . . . 4 1 . . . . 7 7 . 3 Storage 3 | . 1 . . . 1 . . . . . . . 1 . . . Processor 3 | . . . 1 . . . . . . . . . 1 . . 1 Hackware 2 | . . . . . . . 2 . . . . . . . . . Protection 8 | . . . . . . . 2 . . . . 1 1 1 2 1 Artifact . | . . . . . . . . . . . . . . . . . Weapon 52 | . 1 . 6 . . 1 9 4 . 1 . 7 10 3 4 6 Energy Gun 15 | . . . 1 . . . 7 4 . . . . 3 . . . Energy Cannon . | . . . . . . . . . . . . . . . . . Ballistic Gun 22 | . 1 . 5 . . 1 1 . . . . 5 5 . 3 1 Ballistic Cannon 10 | . . . . . . . 1 . . 1 . 1 1 3 . 3 Launcher 1 | . . . . . . . . . . . . . 1 . . . Special Weapon . | . . . . . . . . . . . . . . . . . Impact Weapon . | . . . . . . . . . . . . . . . . . Slashing Weapon . | . . . . . . . . . . . . . . . . . Piercing Weapon 4 | . . . . . . . . . . . . 1 . . 1 2 Special Melee Weapon . | . . . . . . . . . . . . . . . . . Unidentified Prototypes 13 | . . . 2 . . . 5 2 . . . . 4 . . . Corrupted Parts 5 | . . . . . . . 5 . . . . . . . . . System Corruption 38 | . . . . . . . 38 . . . . . . . . . Parts Lost 37 | . 3 . 2 . . 1 5 . . . . 2 2 4 3 15 Power 5 | . . . 1 . . . 1 . . . . 1 . 1 . 1 Propulsion 9 | . 1 . 1 . . . . . . . . . 1 2 2 2 Utility 10 | . 1 . . . . . 1 . . . . . 1 1 . 6 Weapon 13 | . 1 . . . . 1 3 . . . . 1 . . 1 6 Highest Loss Streak 15 | . 2 . 2 . . 1 3 . . . . 2 2 4 3 15 Average Slot Usage (%) 83 | . 94 100 94 100 100 100 93 75 76 76 76 76 85 79 79 68 Engine 6 | . 14 14 10 11 11 11 9 7 7 7 7 6 1 3 6 5 Treads 19 | . 6 . 1 . . . . 29 30 30 30 30 26 21 19 11 Leg 2 | . . . . . 7 22 17 . . . . . . . . . Wheel 2 | . 20 28 20 22 14 . . . . . . . . . . . Device 14 | . 9 14 11 11 11 11 11 14 15 15 15 13 19 18 17 5 Storage 7 | . 14 14 11 11 11 11 9 7 7 7 7 7 6 6 6 5 Processor 3 | . . . 10 11 11 11 1 . . . . . 6 6 6 7 Hackware 1 | . . . . . . . 16 . . . . . . . . . Energy Gun 2 | . . . . . . . 15 6 7 6 . . . . . . Ballistic Gun 9 | . 28 28 29 33 33 33 6 . . . . 7 18 1 1 17 Ballistic Cannon 7 | . . . . . . . 1 7 7 7 15 8 1 18 17 . Naked Turns . | . . . . . . . . . . . . . . . . . Heaviest Build 93 | 13 32 31 38 38 58 58 70 70 72 73 73 75 78 93 88 83 Greatest Support 96 | 26 40 32 40 32 60 60 60 80 80 80 80 80 96 96 76 50 Greatest Overweight (x) 9 | . 9 . 1 1 1 . 1 . . . . . . 1 1 1 Average Overweight (x) . | . . . . 1 . . . . . . . . . . 1 . Largest Inventory Capacity 20 | 8 15 15 15 15 20 20 20 20 20 20 20 20 20 20 20 20 Average Capacity 19 | 8 13 15 15 15 15 20 20 20 20 20 20 20 20 20 20 19 Most Carried 20 | 6 10 9 15 14 15 15 20 20 20 20 20 20 20 20 20 20 Average Carried 18 | 4 8 9 12 14 14 14 17 19 19 19 19 19 19 19 19 17 Final Capacity 20 | 8 15 15 15 15 20 20 20 20 20 20 20 20 20 20 20 5 Final Carried 20 | 5 9 9 14 14 14 15 20 20 20 20 20 20 20 20 19 5 Class Distribution -------------------- 66% | Scavenger-Skirmisher 8% | Skirmisher 5% | Mutant 4% | Scavenger-Gunner 4% | Hacker-Skirmisher 4% | Gunner Dominant Class ---------------- Mutant | -10/Materials Mutant | -10/Mines Gunner | -9/Materials Scavenger-Gunner | -9/Mines Scavenger-Gunner | -9/Exiles Skirmisher | -8/Mines Hacker-Skirmisher | -8/Materials Scavenger-Skirmisher | -7/Factory Scavenger-Skirmisher | -7/Lower Caves Scavenger-Skirmisher | -7/Lower Caves Scavenger-Skirmisher | -7/Zion Scavenger-Skirmisher | -6/Proximity Caves Scavenger-Skirmisher | -6/Factory Scavenger-Skirmisher | -6/Lower Caves Scavenger-Skirmisher | -6/Lower Caves Skirmisher | -6/Data Miner Resources | -11 -10 -10 -9 -9 -9 -8 -8 -7 -7 -7 -7 -6 -6 -6 -6 -6 ----------- Run | Scr Mat Min Mat Min Exi Min Mat Fac Low Low Zio Pro Fac Low Low Dat Matter Collected 5325 | 236 354 . 597 63 . 157 654 257 26 90 . 387 1198 711 345 250 Remotely 141 | . 141 . . . . . . . . . . . . . . . Salvage Created 7430 | 96 563 . 1257 157 . 146 1175 268 . 79 . 441 2206 447 415 180 Parts 386 | 3 36 . 86 19 . 6 77 12 . 5 . 15 77 22 16 12 Haulers Intercepted 15 | . 2 . 4 . . . 4 2 . . . . 3 . . . Recyclers Shooed 12 | 1 1 . 1 . . . 2 1 . . . . 6 . . . Parts Field Recycled . | . . . . . . . . . . . . . . . . . Retrieved Matter . | . . . . . . . . . . . . . . . . . Parts Self-Destructed 80 | . . . . . . . . . . 14 . 16 . 34 16 . Prevented . | . . . . . . . . . . . . . . . . . Kills | -11 -10 -10 -9 -9 -9 -8 -8 -7 -7 -7 -7 -6 -6 -6 -6 -6 ------- Run | Scr Mat Min Mat Min Exi Min Mat Fac Low Low Zio Pro Fac Low Low Dat Combat Hostiles Destroyed 96 | . 7 . 18 6 . 3 14 4 . 2 . 7 14 12 7 2 Guns 67 | . 7 . 18 6 . 3 12 2 . . . . 14 1 3 1 Cannons 25 | . . . . . . . . 2 . 2 . 6 . 11 3 1 AOE 1 | . . . . . . . 1 . . . . . . . . . Classes Destroyed 19 | 1 8 . 1 1 . . 1 1 . . . 2 1 2 1 . Worker 13 | . 2 . 7 1 . . 1 1 . . . . 1 . . . Builder 5 | . 1 . 2 . . . 1 . . . . . 1 . . . Tunneler 1 | . . . . 1 . . . . . . . . . . . . Hauler 15 | . 2 . 4 . . . 4 2 . . . . 3 . . . Recycler 18 | 1 2 . 2 . . . 3 1 . . . . 9 . . . Minesweeper 1 | . . . . . . . . . . . . . . 1 . . Mechanic 2 | . 1 . 1 . . . . . . . . . . . . . Operator 4 | . 1 . 1 . . . 1 . . . . . 1 . . . Watcher 6 | . 1 . 1 . . . 2 . . . . . 2 . . . Swarmer 34 | . 3 . 6 6 . . 3 3 . . . . 4 6 3 . Grunt 37 | . 4 . 7 . . 3 8 . . . . 3 6 3 3 . Duelist 1 | . . . . . . . . . . . . . . 1 . . Sentry 12 | . . . 5 . . . 2 . . . . 2 1 2 . . Hunter 2 | . . . . . . . . . . . . . 2 . . . Programmer 4 | . . . . . . . . 1 . 1 . 1 1 . . . Heavy 1 | . . . . . . . 1 . . . . . . . . . Behemoth 2 | . . . . . . . . . . . . 1 . . 1 . Enhanced Grunt 2 | . . . . . . . . . . . . . . . . 2 Samaritan 3 | . . . . . . . . . . . . . . . 3 . Thug 1 | . . . . . . . . . . 1 . . . . . . Fireman 1 | . . . . . . . . . . . . 1 . . . . Best Kill Streak 9 | 1 4 . 9 6 . 3 8 3 . 1 . 3 6 6 4 1 Combat Bots Only 7 | . 3 . 7 4 . 3 2 3 . 1 . 3 4 6 4 1 Max Kills in Single Turn 2 | 1 1 . 1 2 . 1 1 1 . 1 . 1 2 2 1 1 Gunslinging 1 | . . . . . . . . . . . . . 1 . . . Exploded 1 | . . . . . . . 1 . . . . . . . . . Melee . | . . . . . . . . . . . . . . . . . Uniques/NPCs Destroyed 1 | . . . . . . . . . . . . . . . . 1 Data Miner (-6/Data Miner) Combat | -11 -10 -10 -9 -9 -9 -8 -8 -7 -7 -7 -7 -6 -6 -6 -6 -6 -------- Run | Scr Mat Min Mat Min Exi Min Mat Fac Low Low Zio Pro Fac Low Low Dat Damage Taken 8016 | . 393 3 543 92 . 278 1295 212 . 63 . 448 1207 935 934 1613 Core 1490 | . 84 . 117 8 . 55 305 36 . . . 22 103 93 175 492 Absorbed by Shields . | . . . . . . . . . . . . . . . . . Core Remaining (%) 71 | 100 . 66 . . . 55 44 . . . . 91 . . . . Volleys Fired 385 | 4 61 . 68 14 . 9 62 14 2 10 . 26 64 22 16 13 Largest 3 | 2 2 . 3 3 . 3 3 2 2 1 . 2 3 3 3 3 Hottest 171 | 40 43 . 69 69 . 69 156 121 121 60 . 99 108 171 171 108 Shots Fired 987 | 8 122 . 185 42 . 27 174 28 3 10 . 49 192 66 46 35 Gun 829 | 8 122 . 185 42 . 27 174 14 1 . . 10 190 8 18 30 Cannon 158 | . . . . . . . . 14 2 10 . 39 2 58 28 5 Launcher . | . . . . . . . . . . . . . . . . . Special . | . . . . . . . . . . . . . . . . . Kinetic 902 | 8 122 . 185 42 . 27 104 14 2 10 . 49 192 66 46 35 Thermal 37 | . . . . . . . 22 14 1 . . . . . . . Explosive . | . . . . . . . . . . . . . . . . . Electromagnetic 48 | . . . . . . . 48 . . . . . . . . . Robot Hit Streak 29 | 3 22 . 26 5 . 7 12 6 . 2 . 7 29 7 7 9 Robot Miss Streak 6 | 2 4 . 4 6 . 2 5 3 . 5 . 3 2 5 5 2 Penetration Max 1 | . . . . . . . . . . . . . . 1 1 . Secondary Targets 20 | . 1 . 7 2 . 1 1 . . . . . 5 . 2 1 Max Gunslinging Chain 1 | . 1 . 1 1 . 1 1 . . . . . 1 . 1 1 Shots Hit Robots 633 | 5 82 . 122 19 . 19 116 17 . 3 . 24 137 31 27 31 Core Hits 255 | 2 28 . 49 8 . 8 43 8 . 2 . 9 55 16 13 14 Critical Kills 18 | . . . . . . . 1 . . . . . 1 11 5 . Critical Parts Destroyed 20 | 1 . . 1 . . 1 1 . . . . . . 8 8 . Critical Strikes 48 | 1 . . 1 . . 1 3 3 . . . 3 1 21 13 1 Burn 2 | . . . . . . . 1 1 . . . . . . . . Destroy 40 | 1 . . 1 . . 1 2 . . . . . 1 21 13 . Blast 5 | . . . . . . . . 2 . . . 3 . . . . Puncture 1 | . . . . . . . . . . . . . . . . 1 Melee Attacks 8 | . . . . . . . . . . . . 3 . . 2 3 Impact . | . . . . . . . . . . . . . . . . . Slashing . | . . . . . . . . . . . . . . . . . Piercing 8 | . . . . . . . . . . . . 3 . . 2 3 Sneak Attacks 1 | . . . . . . . . . . . . . . . . 1 Combat Hostiles . | . . . . . . . . . . . . . . . . . Follow-up Attacks . | . . . . . . . . . . . . . . . . . Damage Inflicted 13128 | 61 1004 6 1840 333 . 288 2062 735 . 226 . 951 3366 814 581 861 Guns 9833 | 61 1004 . 1840 333 . 288 1899 170 . . . 50 3238 155 223 572 Cannons 2759 | . . . . . . . . 535 . 226 . 830 58 659 350 101 Explosions 148 | . . . . . . . 148 . . . . . . . . . Melee 259 | . . . . . . . . . . . . 71 . . . 188 Ramming 129 | . . 6 . . . . 15 30 . . . . 70 . 8 . Kinetic 11531 | 61 1004 . 1840 333 . 288 1008 535 . 226 . 880 3296 814 573 673 Thermal 526 | . . . . . . . 356 170 . . . . . . . . Explosive . | . . . . . . . . . . . . . . . . . Electromagnetic 683 | . . . . . . . 683 . . . . . . . . . Impact . | . . . . . . . . . . . . . . . . . Slashing . | . . . . . . . . . . . . . . . . . Piercing 259 | . . . . . . . . . . . . 71 . . . 188 Highest Corruption 38 | . . . . . . . 38 1 1 2 2 . 3 3 3 3 Average Corruption 3 | . . . . . . . 37 1 1 1 2 . 2 3 3 3 Corruption Purged . | . . . . . . . . . . . . . . . . . Effects 101 | . . . . . . . 9 1 3 5 2 . 16 47 15 3 Message Errors 29 | . . . . . . . 2 1 1 2 1 . 7 11 3 1 Matter Fused 29 | . . . . . . . 3 . . . . . 4 15 7 . Heat Flow Errors 14 | . . . . . . . 2 . . 1 . . 3 6 1 1 Energy Discharges 11 | . . . . . . . . . 1 1 . . 2 5 1 1 Data Loss (minor) 16 | . . . . . . . . . 1 1 1 . . 10 3 . Data Loss (major) 2 | . . . . . . . 2 . . . . . . . . . Overload Shots . | . . . . . . . . . . . . . . . . . Overflow Damage 178 | . . . . . . . . 52 . 25 . 72 . . 29 . Projectiles 178 | . . . . . . . . 52 . 25 . 72 . . 29 . Explosions . | . . . . . . . . . . . . . . . . . Melee . | . . . . . . . . . . . . . . . . . Knockbacks 22 | . . . . . . . 1 3 . 1 . 4 3 6 4 . Impact 4 | . . . . . . . 1 . . . . . 3 . . . Kinetic 18 | . . . . . . . . 3 . 1 . 4 . 6 4 . Secondary . | . . . . . . . . . . . . . . . . . Self-Inflicted Damage 35 | . . 3 . . . . 32 . . . . . . . . . Shots 1 | . . . . . . . 1 . . . . . . . . . Rammed 10 | . . 1 . . . . . 2 . . . . 4 . 3 . Targets Rammed 11 | . . 1 . . . . 1 2 . . . . 4 . 3 . Kicked 1 | . . . . . . . 1 . . . . . . . . . Crushed . | . . . . . . . . . . . . . . . . . Highest Temperature 310 | . 18 . . . . 5 234 200 55 221 . 134 217 310 149 256 Average Temperature 63 | . 7 . . . . 5 102 63 33 47 . 32 94 80 54 115 Received Heat Transfer 1615 | . 180 . 156 . . 144 423 . . . . 120 172 123 81 216 Effects 3 | . . . . . . . . 3 . . . . . . . . Interference 3 | . . . . . . . . 3 . . . . . . . . Siege Activations . | . . . . . . . . . . . . . . . . . Robots Corrupted 2 | . . . . . . . 2 . . . . . . . . . Combat Hostiles 1 | . . . . . . . 1 . . . . . . . . . Parts Fried 7 | . . . . . . . 7 . . . . . . . . . Impact Corruptions 1 | . . . . . . . . . . . . . . . 1 . Robots Melted . | . . . . . . . . . . . . . . . . . Combat Hostiles . | . . . . . . . . . . . . . . . . . Parts Melted 3 | . . . . . . . 1 2 . . . . . . . . Heat Transferred 1038 | . . . . . . . 668 370 . . . . . . . . Parts Sabotaged . | . . . . . . . . . . . . . . . . . Parts Stolen . | . . . . . . . . . . . . . . . . . Parts Stripped . | . . . . . . . . . . . . . . . . . Power Chain Reactions 2 | . . . . . . . 2 . . . . . . . . . Missiles Intercepted . | . . . . . . . . . . . . . . . . . Alert | -11 -10 -10 -9 -9 -9 -8 -8 -7 -7 -7 -7 -6 -6 -6 -6 -6 ------- Run | Scr Mat Min Mat Min Exi Min Mat Fac Low Low Zio Pro Fac Low Low Dat Peak Influence 321 | 5 267 . 321 289 . 60 263 134 . . . . 207 . . . Initial 109 | . 3 . . 109 . . . 18 . . . . . . . . Average 97 | 2 109 . 172 186 . 43 68 44 . . . . 98 . . . Maximum Alert Level 1 | . 1 . 1 1 . . 1 . . . . . 1 . . . Low Security (%) 85 | 100 75 100 59 60 . 100 95 100 . . . . 87 . . . Level 1 14 | . 24 . 40 39 . . 4 . . . . . 12 . . . Level 2 . | . . . . . . . . . . . . . . . . . Level 3 . | . . . . . . . . . . . . . . . . . Level 4 . | . . . . . . . . . . . . . . . . . Level 5 . | . . . . . . . . . . . . . . . . . High Security . | . . . . . . . . . . . . . . . . . Max Security . | . . . . . . . . . . . . . . . . . Squads Dispatched 13 | . 2 . 4 . . . 1 1 . . . . 5 . . . Investigation 5 | . 1 . 3 . . . . . . . . . 1 . . . Extermination 2 | . . . . . . . . . . . . . 2 . . . Reinforcement 6 | . 1 . 1 . . . 1 1 . . . . 2 . . . Assault . | . . . . . . . . . . . . . . . . . Garrison . | . . . . . . . . . . . . . . . . . Intercept . | . . . . . . . . . . . . . . . . . Construction Impeded . | . . . . . . . . . . . . . . . . . Haulers Reinforced 4 | . . . . . . . 1 1 . . . . 2 . . . Active Scanning Responses . | . . . . . . . . . . . . . . . . . Cargo Convoy Interrupts . | . . . . . . . . . . . . . . . . . Stealth | -11 -10 -10 -9 -9 -9 -8 -8 -7 -7 -7 -7 -6 -6 -6 -6 -6 --------- Run | Scr Mat Min Mat Min Exi Min Mat Fac Low Low Zio Pro Fac Low Low Dat Distress Signals 5 | . 1 . 1 . . . 1 1 . . . . 1 . . . Communications Jammed . | . . . . . . . . . . . . . . . . . Distress Signals . | . . . . . . . . . . . . . . . . . Times Spotted 152 | . 16 . 28 7 . 3 22 7 . 4 . 13 22 17 9 4 Peak Tracking Total 9 | . 5 . 8 4 . 3 3 4 . 1 . 6 6 9 4 3 Tactical Retreats 15 | . 1 . . 1 . . 1 . . 2 . 4 2 4 . . Traps | -11 -10 -10 -9 -9 -9 -8 -8 -7 -7 -7 -7 -6 -6 -6 -6 -6 ------- Run | Scr Mat Min Mat Min Exi Min Mat Fac Low Low Zio Pro Fac Low Low Dat Traps Triggered 3 | . . . . . . . . 1 . . . . 2 . . . Indirectly . | . . . . . . . . . . . . . . . . . Trap Hack Attempts . | . . . . . . . . . . . . . . . . . Triggered . | . . . . . . . . . . . . . . . . . Disarmed . | . . . . . . . . . . . . . . . . . Reprogrammed 6 | . . . . . . . . . . . . . 6 . . . Reused . | . . . . . . . . . . . . . . . . . Traps Extracted . | . . . . . . . . . . . . . . . . . Installed . | . . . . . . . . . . . . . . . . . Triggered . | . . . . . . . . . . . . . . . . . Machines | -11 -10 -10 -9 -9 -9 -8 -8 -7 -7 -7 -7 -6 -6 -6 -6 -6 ---------- Run | Scr Mat Min Mat Min Exi Min Mat Fac Low Low Zio Pro Fac Low Low Dat Machines Disabled 11 | . . . . 1 . . 3 . . . . 3 3 . . 1 Max in Single Turn 1 | . . . . 1 . . 1 . . . . 1 1 . . 1 Machines Sabotaged . | . . . . . . . . . . . . . . . . . Garrisons Compromised . | . . . . . . . . . . . . . . . . . Overloaded Fab Kills . | . . . . . . . . . . . . . . . . . Fab Network Shutdowns . | . . . . . . . . . . . . . . . . . Hacking | -11 -10 -10 -9 -9 -9 -8 -8 -7 -7 -7 -7 -6 -6 -6 -6 -6 --------- Run | Scr Mat Min Mat Min Exi Min Mat Fac Low Low Zio Pro Fac Low Low Dat Machines Accessed 35 | . 4 . 5 . 2 . 10 2 1 . 1 . 5 1 . 4 Terminals 23 | . 4 . 4 . . . 9 1 . . . . 5 . . . Fabricators 1 | . . . . . . . . 1 . . . . . . . . Repair Stations 1 | . . . 1 . . . . . . . . . . . . . Recycling Units . | . . . . . . . . . . . . . . . . . Scanalyzers 1 | . . . . . . . 1 . . . . . . . . . Garrison Access . | . . . . . . . . . . . . . . . . . Total Hacks 141 | . 14 . 22 . 2 . 49 6 1 . 7 . 14 1 . 25 Successful 93 | . 5 . 15 . 2 . 28 3 1 . 7 . 6 1 . 25 Failed 46 | . 8 . 7 . . . 20 3 . . . . 8 . . . Catastrophic 4 | . 1 . 1 . . . 1 . . . . . 1 . . . Database Lockouts 2 | . 1 . . . . . 1 . . . . . . . . . Manual 66 | . 14 . 11 . 1 . 27 6 . . . . 7 . . . Terminals 91 | . 14 . 14 . . . 45 4 . . . . 14 . . . Fabricators 2 | . . . . . . . . 2 . . . . . . . . Repair Stations 8 | . . . 8 . . . . . . . . . . . . . Recycling Units . | . . . . . . . . . . . . . . . . . Scanalyzers 4 | . . . . . . . 4 . . . . . . . . . Garrison Access . | . . . . . . . . . . . . . . . . . Terminal Hacks 66 | . 3 . 4 . 2 . 18 1 1 . 7 . 4 1 . 25 Record 12 | . . . . . 1 . . . . . . . . . . 11 Part Schematic 11 | . . . . . . . . . . . 7 . . . . 4 Robot Schematic 7 | . . . . . . . . . . . . . . . . 7 Robot Analysis 6 | . 2 . 2 . . . 2 . . . . . . . . . Prototype ID Bank 6 | . . . . . . . 3 . . . . . . . . 3 Open Door 2 | . . . . . . . . . 1 . . . . 1 . . Branch Access Points 3 | . . . 1 . . . 1 . . . . . 1 . . . Terminal Index 3 | . . . 1 . . . 2 . . . . . . . . . Alert Level 1 | . . . . . . . 1 . . . . . . . . . Unreport Threat 5 | . 1 . . . . . 3 . . . . . 1 . . . Locate Traps 3 | . . . . . . . 1 1 . . . . 1 . . . Reprogram Traps 1 | . . . . . . . . . . . . . 1 . . . Hauler Manifests 1 | . . . . . . . 1 . . . . . . . . . Registered Components 1 | . . . . . . . 1 . . . . . . . . . Zone Layout 3 | . . . . . . . 3 . . . . . . . . . EX-Prototype ID Bank 1 | . . . . . 1 . . . . . . . . . . . Fabricator Hacks . | . . . . . . . . . . . . . . . . . Repair Station Hacks 8 | . . . 8 . . . . . . . . . . . . . Scan Component 4 | . . . 4 . . . . . . . . . . . . . Repair 4 | . . . 4 . . . . . . . . . . . . . Recycling Unit Hacks . | . . . . . . . . . . . . . . . . . Scanalyzer 3 | . . . . . . . 3 . . . . . . . . . Insert Component 1 | . . . . . . . 1 . . . . . . . . . Analyze 2 | . . . . . . . 2 . . . . . . . . . Garrison Access Hacks . | . . . . . . . . . . . . . . . . . Unauthorized Hacks 16 | . 2 . 3 . . . 7 2 . . . . 2 . . . Terminals 15 | . 2 . 3 . . . 7 1 . . . . 2 . . . Botnet 14 | . 2 . 3 . . . 6 1 . . . . 2 . . . Operators 1 | . . . . . . . 1 . . . . . . . . . Fabricators 1 | . . . . . . . . 1 . . . . . . . . Haulers 1 | . . . . . . . . 1 . . . . . . . . Repair Stations . | . . . . . . . . . . . . . . . . . Recycling Units . | . . . . . . . . . . . . . . . . . Scanalyzers . | . . . . . . . . . . . . . . . . . Garrison Access . | . . . . . . . . . . . . . . . . . Data Cores Recovered 1 | . . . 1 . . . . . . . . . . . . . Used . | . . . . . . . . . . . . . . . . . Hacking Detections 22 | . 4 . 5 . . . 6 2 . . . . 5 . . . Full Trace Events 5 | . 1 . 3 . . . . . . . . . 1 . . . Feedback Events . | . . . . . . . . . . . . . . . . . Feedback Blocked . | . . . . . . . . . . . . . . . . . Robot Schematics Acquired 7 | . . . . . . . . . . . . . . . . 7 Robots Built . | . . . . . . . . . . . . . . . . . Matter . | . . . . . . . . . . . . . . . . . Time . | . . . . . . . . . . . . . . . . . Total Robot Build Rating . | . . . . . . . . . . . . . . . . . Part Schematics Acquired 11 | . . . . . . . . . . . 7 . . . . 4 Parts Built . | . . . . . . . . . . . . . . . . . Matter . | . . . . . . . . . . . . . . . . . Time . | . . . . . . . . . . . . . . . . . Total Part Build Rating . | . . . . . . . . . . . . . . . . . Parts Repaired 4 | . . . 4 . . . . . . . . . . . . . Time 116 | . . . 116 . . . . . . . . . . . . . Parts Recycled . | . . . . . . . . . . . . . . . . . Recycled Matter . | . . . . . . . . . . . . . . . . . Retrieved Matter . | . . . . . . . . . . . . . . . . . Retrieved Components . | . . . . . . . . . . . . . . . . . Parts Scanalyzed 1 | . . . . . . . 1 . . . . . . . . . Part Schematics Acquired . | . . . . . . . . . . . . . . . . . Parts Damaged . | . . . . . . . . . . . . . . . . . Bothacking | -11 -10 -10 -9 -9 -9 -8 -8 -7 -7 -7 -7 -6 -6 -6 -6 -6 ------------ Run | Scr Mat Min Mat Min Exi Min Mat Fac Low Low Zio Pro Fac Low Low Dat Used RIF Installer . | . . . . . . . . . . . . . . . . . Robots Hacked . | . . . . . . . . . . . . . . . . . Non-combat . | . . . . . . . . . . . . . . . . . Combat . | . . . . . . . . . . . . . . . . . Robot Hacks Applied . | . . . . . . . . . . . . . . . . . Relay Couplers Released . | . . . . . . . . . . . . . . . . . Robots Rewired 2 | . . . . . . . . . . . . . . 2 . . Allies Hacked . | . . . . . . . . . . . . . . . . . Hacks Repelled 1 | . . . . . . . . . . . . 1 . . . . Allies | -11 -10 -10 -9 -9 -9 -8 -8 -7 -7 -7 -7 -6 -6 -6 -6 -6 -------- Run | Scr Mat Min Mat Min Exi Min Mat Fac Low Low Zio Pro Fac Low Low Dat Total Allies 8 | . . . . . . . . . . . 6 . . 2 . . Largest Group 6 | . . . . . . . . . . . 6 6 . 2 2 . Highest-Rated Group 182 | . . . . . . . . . . . 182 182 . 58 58 . Highest-Rated Ally 47 | . . . . . . . . . . . 47 47 . 29 29 . Total Orders . | . . . . . . . . . . . . . . . . . Ally Attacks 58 | . . . . . . . . . . . . 25 . 13 20 . Total Damage 1164 | . . . . . . . . . . . . 648 . 190 326 . Kills 9 | . . . . . . . . . . . . 5 . 2 2 . Allies Corrupted . | . . . . . . . . . . . . . . . . . Allies Melted . | . . . . . . . . . . . . . . . . . Intel | -11 -10 -10 -9 -9 -9 -8 -8 -7 -7 -7 -7 -6 -6 -6 -6 -6 ------- Run | Scr Mat Min Mat Min Exi Min Mat Fac Low Low Zio Pro Fac Low Low Dat Robot Analysis Total 6 | . 2 . 2 . . . 2 . . . . . . . . . Derelict Logs Recovered 8 | . . . . 1 . . . . 1 . 1 2 . 3 . . Drone Launches . | . . . . . . . . . . . . . . . . . Drone Recoveries . | . . . . . . . . . . . . . . . . . Exploration | -11 -10 -10 -9 -9 -9 -8 -8 -7 -7 -7 -7 -6 -6 -6 -6 -6 ------------- Run | Scr Mat Min Mat Min Exi Min Mat Fac Low Low Zio Pro Fac Low Low Dat Turns Passed 13876 | 25 401 11 971 277 308 438 1136 805 767 740 1314 1698 1713 2232 780 260 Spaces Moved 7070 | 11 185 11 500 202 288 184 754 401 442 327 769 880 804 951 273 88 Core 16 | . 1 . . . . . . . . . . . . . . 15 Treads 4942 | . 20 . 2 . . . . 401 442 327 769 880 804 951 273 73 Legs 1058 | . . . . . 120 184 754 . . . . . . . . . Wheels 1054 | 11 164 11 498 202 168 . . . . . . . . . . . Hover . | . . . . . . . . . . . . . . . . . Flight . | . . . . . . . . . . . . . . . . . Fastest Speed 45 | 90 90 100 100 115 90 90 45 167 170 170 170 170 165 165 260 50 Average Speed 161 | 90 106 100 115 115 104 90 109 169 170 170 170 170 168 215 260 224 Slowest Speed 500 | 90 500 100 160 115 180 90 180 170 170 170 170 170 170 260 260 260 Overloaded Moves 115 | . . . . . . . 115 . . . . . . . . . Propulsion Burnouts . | . . . . . . . . . . . . . . . . . Robots Hopped . | . . . . . . . . . . . . . . . . . Cave-ins Triggered . | . . . . . . . . . . . . . . . . . Exploration Rate (%) 48 | 3 30 8 48 45 70 48 52 12 68 54 80 79 19 84 47 76 Regions Visited 16 Branch Regions 11 Pre-discovered Areas 5 | . . . . . 1 . . . 1 . 1 . . 1 . 1 Known Exits Taken 9 | . . . 1 . . . . 1 1 1 1 1 1 1 1 . Unknown Exits Taken 7 | 1 1 1 . 1 1 1 1 . . . . . . . . . Scrap Searched 17 | . . . . . . 1 . . 4 1 3 4 . 2 2 . Spaces Dug 15 | . . . . . . . . . 2 . . 12 . 1 . . Terrain Destroyed 78 | . . . . . . . 10 4 2 7 . 19 . 23 13 . Melee . | . . . . . . . . . . . . . . . . . Projectile 68 | . . . . . . . . 4 2 7 . 19 . 23 13 . AOE 10 | . . . . . . . 10 . . . . . . . . . Terrain Rammed . | . . . . . . . . . . . . . . . . . Walls Destroyed . | . . . . . . . . . . . . . . . . . Machines Disabled . | . . . . . . . . . . . . . . . . . Actions | -11 -10 -10 -9 -9 -9 -8 -8 -7 -7 -7 -7 -6 -6 -6 -6 -6 --------- Run | Scr Mat Min Mat Min Exi Min Mat Fac Low Low Zio Pro Fac Low Low Dat Total 8718 | 19 278 11 753 215 293 436 930 490 458 497 778 1018 1036 1084 301 121 Wait 849 | . 2 . 126 . . 241 39 52 1 155 1 84 113 33 1 1 Move 7055 | 10 184 11 499 201 287 183 753 400 441 326 768 879 803 950 272 88 Hop . | . . . . . . . . . . . . . . . . . Pick Up 100 | 1 12 . 27 . . 2 24 2 5 2 5 8 7 4 . 1 Fast Attach 43 | . 5 . 2 . 2 . 7 5 . 1 . 3 12 5 1 . Attach 44 | 2 2 . 8 . . 1 8 5 . . . 3 5 1 1 8 Detach 8 | . . . . . . . 3 2 . . . 1 2 . . . Swap 49 | . 2 . 5 . 1 . 10 2 1 . . 3 9 7 5 4 Drop 111 | 2 10 . 18 . 3 . 23 6 8 3 4 8 17 6 . 3 Fire 385 | 4 61 . 68 14 . 9 62 14 2 10 . 26 64 22 16 13 Melee 8 | . . . . . . . . . . . . 3 . . 2 3 Ram . | . . . . . . . . . . . . . . . . . Kick 1 | . . . . . . . 1 . . . . . . . . . Crush 9 | . . . . . . . . 2 . . . . 4 . 3 . Escape Stasis . | . . . . . . . . . . . . . . . . . Rewire 56 | . . . . . . . . . . . . . . 56 . . Trap . | . . . . . . . . . . . . . . . . . Miscellaneous . | . . . . . . . . . . . . . . . . . Route ------- -11/Scrapyard -10/Materials -10/Mines -9/Materials (discovered 3 exits: *Mat / *Min x2) -9/Mines (discovered 3 exits: *Mat x2 / *Exi) -9/Exiles -8/Mines -8/Materials -7/Factory -7/Lower Caves -7/Lower Caves -7/Zion -6/Proximity Caves -6/Factory (discovered 3 exits: Fac / *Low x2) -6/Lower Caves -6/Lower Caves -6/Data Miner (discovered 1 exit: [*Pro]) History --------- Turn | Location | Event 16 | -11/Scrapyard | Discovered new exit (range 3) 26 | -11/Scrapyard | Entered Materials 171 | -10/Materials | Discovered new exit (range 16) 377 | -10/Materials | Central database locked down 396 | -10/Materials | Build established: Mutant 427 | -10/Materials | Entered Mines 428 | -10/Mines | Discovered new exit (range 11) 438 | -10/Mines | Entered Materials 438 | -9/Materials | Evolved 2 slots: Utility x1, Weapon x1 602 | -9/Materials | Destroyed 7 combat bots 747 | -9/Materials | Build established: Gunner 864 | -9/Materials | Repaired Hvy. Assault Rifle 891 | -9/Materials | Repaired Lgt. Armor Plating 918 | -9/Materials | Repaired Lgt. Armor Plating 951 | -9/Materials | Repaired Hvy. Assault Rifle 987 | -9/Materials | Discovered new exit (range 8) 1076 | -9/Materials | Identified exit to Mines 1220 | -9/Materials | Build established: Mutant 1409 | -9/Materials | Entered Mines 1442 | -9/Mines | Learned Materials emergency access door positions 1529 | -9/Mines | Build established: Scavenger-Gunner 1533 | -9/Mines | Discovered new exit (range 9) 1614 | -9/Mines | Discovered new exit (range 13) 1680 | -9/Mines | Deemed a non-threat by the Exiles lab entrance 1682 | -9/Mines | Discovered new exit (range 5) 1686 | -9/Mines | Entered Exiles 1714 | -9/Exiles | Met 8R-AWN 1735 | -9/Exiles | Met EX-HEX 1785 | -9/Exiles | Met EX-DEC 1806 | -9/Exiles | Learned location of Zion (-7) 1828 | -9/Exiles | Met EX-BIN 1844 | -9/Exiles | Aligned with FarCom system 1845 | -9/Exiles | Given EX-Vault access code 1873 | -9/Exiles | Opened EX-Vault 1881 | -9/Exiles | Found Potential Leg 1884 | -9/Exiles | Found Potential Leg 1905 | -9/Exiles | Warned to stay clear of 0b10 Research branches 1987 | -9/Exiles | Discovered new exit (range 10) 1994 | -9/Exiles | Left Exiles lab with Potential Leg 1994 | -9/Exiles | Entered Mines 2302 | -8/Mines | Build established: Skirmisher 2429 | -8/Mines | Discovered new exit (range 5) 2432 | -8/Mines | Entered Materials 2432 | -8/Materials | Evolved 2 slots: Utility x2 2807 | -8/Materials | Central database locked down 2902 | -8/Materials | Discovered new exit (range 16) 2922 | -8/Materials | Build established: Hacker-Skirmisher 3148 | -8/Materials | Core integrity fell below 50% 3177 | -8/Materials | Found Corrupted Prototype Device 3194 | -8/Materials | Lost 3 parts (1p1u1w) 3417 | -8/Materials | System corruption reached 10% 3422 | -8/Materials | System corruption reached 30% 3424 | -8/Materials | Identified Active Sensor Suite 3568 | -8/Materials | Entered Factory 3568 | -7/Factory | Evolved 2 slots: Propulsion x2 3878 | -7/Factory | Build established: Scavenger-Skirmisher 4302 | -7/Factory | Discovered new exit (range 14) 4373 | -7/Factory | Identified exit to Lower Caves 4373 | -7/Factory | Entered Lower Caves 4466 | -7/Lower Caves | Learned location of Extension (-5) 4515 | -7/Lower Caves | Found Prototype Device 4974 | -7/Lower Caves | Discovered new exit (range 4) 4979 | -7/Lower Caves | Identified exit to Lower Caves 5140 | -7/Lower Caves | Entered another Lower Caves area 5473 | -7/Lower Caves | Ambushed by wild Derelicts 5794 | -7/Lower Caves | Discovered new exit (range 16) 5841 | -7/Lower Caves | Identified exit to Zion 5880 | -7/Lower Caves | Entered Zion 5984 | -7/Zion | Given the Hacking Drone Bay 5985 | -7/Zion | Found Prototype Device 6018 | -7/Zion | Discovered new exit (range 15) 6105 | -7/Zion | System corruption cleaned by Quarantine Array 6224 | -7/Zion | Gained Derelict followers 6325 | -7/Zion | Found CR-A16's Pointy Stick 6413 | -7/Zion | Found GAL Module 6558 | -7/Zion | Learned location of Recycling (-7) 6618 | -7/Zion | Learned 4 Factory zone layouts 7186 | -7/Zion | Identified exit to Proximity Caves 7194 | -7/Zion | Entered Proximity Caves 7194 | -6/Proximity Caves | Accompanied by 6 allies 7858 | -6/Proximity Caves | Attracted the attention of an 0b10 base 8345 | -6/Proximity Caves | Attracted the attention of an 0b10 checkpoint 8470 | -6/Proximity Caves | Spotted B-75 Beast 8487 | -6/Proximity Caves | Revealed the true nature of CR-A16's Pointy Stick 8490 | -6/Proximity Caves | Destroyed B-75 Beast 8536 | -6/Proximity Caves | Identified exit to Factory 8892 | -6/Proximity Caves | Entered Factory 8892 | -6/Factory | Evolved 2 slots: Utility x2 8893 | -6/Factory | Identified exit to Lower Caves 8893 | -6/Factory | Identified exit to Factory 10605 | -6/Factory | Entered Lower Caves 10624 | -6/Lower Caves | Identified exit to Lower Caves 10680 | -6/Lower Caves | Learned 8 Factory zone layouts 10754 | -6/Lower Caves | Attracted the attention of an 0b10 checkpoint 11414 | -6/Lower Caves | Attracted the attention of an 0b10 outpost 11476 | -6/Lower Caves | Lost 4 parts (1p2n1u) 11738 | -6/Lower Caves | Build established: Skirmisher 12067 | -6/Lower Caves | Build established: Scavenger-Skirmisher 12837 | -6/Lower Caves | Entered another Lower Caves area 12837 | -6/Lower Caves | Accompanied by 2 allies 13517 | -6/Lower Caves | Spotted B-75 Beast 13548 | -6/Lower Caves | Destroyed B-75 Beast 13551 | -6/Lower Caves | Discovered new exit (range 15) 13600 | -6/Lower Caves | Lost 3 parts (2n1w) 13612 | -6/Lower Caves | Identified exit to Data Miner 13617 | -6/Lower Caves | Entered Data Miner 13617 | -6/Data Miner | Discovered new exit (range 6) 13667 | -6/Data Miner | Met Data Miner 13729 | -6/Data Miner | Learned location of Section 7 (-2) 13729 | -6/Data Miner | Acquired the access code to Warlord's prototype stash 13768 | -6/Data Miner | Received God Mode back door access code from Data Miner 13806 | -6/Data Miner | Destroyed Data Miner 13816 | -6/Data Miner | Found Prototype Hackware 13824 | -6/Data Miner | Data Conduit disabled 13840 | -6/Data Miner | Core integrity fell below 50% 13872 | -6/Data Miner | Core integrity fell below 20% 13877 | -6/Data Miner | Destroyed by Enhanced Grunt with Neutron Cannon Last Messages --------------- 13839_ Enhanced Grunt destroyed. 13839_ Switching to secondary target: Enhanced Grunt. 13842_ Destroyed Adv. Particle Charger. 13843_ Hvy. Machine Gun destroyed. 13843_ Imp. Medium Armor Plating destroyed. 13848_ Lgt. Treads destroyed. 13852_ Imp. Medium Treads destroyed. 13854_ Hvy. Machine Gun destroyed. 13858_ Dropped Matter Compressor. 13858_ Bore Cannon destroyed. 13858_ Lgt. Angular Momentum Engine destroyed. 13859_ Extracted 242 matter. 13860_ Bore Cannon destroyed. 13861_ Enhanced Grunt destroyed. 13862_ Extracted 6 matter. 13863_ Imp. Cooling System destroyed. 13863_ Adv. Assault Cannon destroyed. 13864_ Extracted 2 matter. 13864_ Dropped Hcp. Storage Unit. 13871_ Enhanced Grunt suffers critical hit (Puncture). Map ----- +----------------------------------------------------+ | | | | | | | | | | | | | | | | | | | | | | | | | ?????????????????????????????????????????????? | | ?????????????????????????????????????????????? | | ?????????????????????????????????????????????? | | ?????????????????????????????????????????????? | | ?????????????????????????????????????####????? | | ?????################??????#???????### #????? | | ????#""""""" """""""###### #?#?#??## #????? | | ????"""""""" " " " "# # # # ## < ##????? | | ????"""""" ! =%* ###### | | ????"""" !!] !!]%% # | | ???"""""""!!& !* # | | ???""""" %*!! g% # | | ???""""" =! g ## | | ????""""" @ """"""""""""""""#####? | | ????"""""" """"###############????? | | ?????"""""" """""###??????????????????? | | ?????"""""""" "#####????????????????????? | | ?????#######"## "#????????????????????????? | | ???????????#"### "#????????????????????????? | | ???????????#"### "#????????????????????????? | | ???????????#"## "#????????????????????????? | | ???????????#?## "#????????????????????????? | | ?????????????# "#????????????????????????? | | ?????????????### "#????????????????????????? | | ???????????????# "##???????????????????????? | | ??????????????## ""#???????????????????????? | | ?????????????## ""#???????????????????????? | | ??????????##"#"X ""#???????????????????????? | | ??????????""""" "####????????????????????? | | ??????????""""" X"""""????????????????????? | | ??????????##"#"X "##"#????????????????????? | | ???????????#?## X""""#????????????????????? | | ??????????????## "##"#????????????????????? | | ???????????????#######???????????????????????? | | ?????????????????????????????????????????????? | | ?????????????????????????????????????????????? | | ?????????????????????????????????????????????? | | ?????????????????????????????????????????????? | +----------------------------------------------------+ Best States ------------- Heat Dissipation 64 Energy Generation 18 Energy Capacity 310 Matter Stores 300 Matter Capacity 300 Sight Range 16 Robot Scan Range 20 Terrain Scan Density 10 ECM Strength 1 Additional Mass Support 12 Armor Coverage 450 Evasion (%) 61 Targeting Accuracy 16 Recoil Reduction 6 Kinecelleration 30 Defensive Hacking 20 Item Schematics ----------------- Hvy. Riot Gun | -7/Zion | Free Battle Cannon | -7/Zion | Free Slug Cannon | -7/Zion | Free Flamer | -7/Zion | Free Battle Rifle | -7/Zion | Free Ripper | -7/Zion | Free Phasing Sabre | -7/Zion | Free Combat Drone Bay | -6/Data Miner | Free Lgt. Regenerative Plating | -6/Data Miner | Free Exp. Cesium-ion Thruster | -6/Data Miner | Free Tactical Coordination Suite | -6/Data Miner | Free Robot Schematics ------------------ S-27 Virus | -6/Data Miner | Free G-50 Soldier | -6/Data Miner | Free L-41 Fighter | -6/Data Miner | Free X-72 Disruptor | -6/Data Miner | Free H-66 Slayer | -6/Data Miner | Free I-36 Angel | -6/Data Miner | Free I-47 Archangel | -6/Data Miner | Free Fabricated ------------ Nothing Alien Tech Used ----------------- None Achievements -------------- None Challenges ------------ None Game ------ Seed ControlPlasmaSystem Manual? 0 Play Time 01:28:47 Cumulative 283.6 hours Start 2021.07.24 @ 02:56:25 End 2021.07.24 @ 04:21:30 Sessions 1 Manual Loads 0 Difficulty Rogue Special Mode None Game No. 157 Rogue 157 Adventurer 0 Explorer 0 Win Type - Total 8 Types 6/0/1/1/0/0/0/0/0 Lore% 77 Gallery% 83 Achievement% 63 Wizard Run 0 Options --------- ASCII 0 Keyboard 0 Movement Numpad Keybinds 0 Fullscreen 1 Font 18/SmallcapsGlow Map View 76x50 Tactical HUD 1 Map Filters NONE Filters NONE Steam 1 RUN: e82b43af-7686-4877-9055-575a7e1e07cd